fUSD/lending_fUSD_20260320
["ID","MTS","AMOUNT","RATE_DAILY","PERIOD"]
[408644533,1774036315234,-300.0,0.00042683,2]
[408644534,1774036315243,-300.0,0.00042683,2]
[408644535,1774036315253,-300.88341007,0.00042683,2]
[408644536,1774036315263,-300.0,0.00042683,2]
[408644537,1774036315272,-695.77347273,0.00042683,2]
[408644538,1774036315282,-369.44,0.00042683,2]
[408644539,1774036315292,-760.97584405,0.00042683,2]
[408644540,1774036315301,-300.0,0.00042683,2]
[408644541,1774036315310,-1138.31063812,0.00042683,2]
[408644542,1774036315320,-307.22298349,0.00042683,2]
[408644543,1774036315330,-857.85317665,0.00042683,2]
[408644544,1774036315339,-81773.4274,0.000427,2]
[408644545,1774036315348,-4000.0,0.0004274,14]
[408644546,1774036315358,-450.0,0.0004274,10]
[408644547,1774036315367,-223.14535795,0.0004274,120]
[408644548,1774036315377,-2000.0,0.0004274,10]
[408644549,1774036315388,-152.0,0.000428,120]
[408644550,1774036315397,-2000.0,0.00042843,2]
[408644551,1774036315407,-2235.39919201,0.0004287,5]
[408644552,1774036315417,-983.51,0.0004287,7]
[408644553,1774036315428,-7303.99863755,0.0004288,60]
[408644554,1774036315437,-151.5,0.00042908,2]
[408644555,1774036315447,-216.0,0.0004295,30]
[408644556,1774036315456,-159.92398238,0.0004299,60]
[408644557,1774036315466,-152.5500797,0.00043,7]
[408644558,1774036315475,-152.5500797,0.00043,7]
[408644559,1774036315485,-214.0,0.00043,7]
[408644560,1774036315495,-10012.47534507,0.00043,10]
[408644561,1774036315506,-300.0,0.00043,10]
[408644562,1774036315518,-1160.61556831,0.00043,2]
[408644563,1774036315531,-1882.75321241,0.00043,120]
[408644564,1774036315540,-238.61244805,0.00043042,2]
[408644565,1774036315550,-202.03,0.00043068,120]
[408644566,1774036315561,-300.0,0.00043068,120]
[408644567,1774036315571,-300.0,0.00043068,120]
[408644568,1774036315581,-300.0,0.00043068,120]
[408644569,1774036315590,-300.0,0.00043068,120]
[408644570,1774036315599,-300.0,0.00043068,120]
[408644571,1774036315608,-300.0,0.00043068,120]
[408644572,1774036315618,-300.0,0.00043068,120]
[408644573,1774036315627,-300.0,0.00043068,120]
[408644574,1774036315636,-300.0,0.00043068,120]
[408644575,1774036315646,-300.0,0.00043068,120]
[408644576,1774036315655,-2216.94402568,0.000431,120]
[408644577,1774036315665,-720.27,0.0004311,10]
[408644578,1774036315675,-238.26,0.00043159,90]
[408644579,1774036315684,-5000.0,0.00043212,30]
[408644580,1774036315693,-3908.0,0.00043212,30]
[408644581,1774036315702,-1634.21,0.00043216,2]
[408644582,1774036315711,-4299.0,0.00043218,30]
[408644583,1774036315720,-650.0,0.00043218,30]
[408644584,1774036315729,-520.0,0.00043218,30]
[408644585,1774036315738,-1092.3,0.00043276,30]
[408644586,1774036315748,-156.79068997,0.00043284,2]
[408644587,1774036315757,-550.0,0.00043288,10]
[408644588,1774036315767,-1332.14429733,0.00043333,14]
[408644589,1774036315776,-259.5,0.00043392,120]
[408644590,1774036315786,-2269.12,0.00043392,120]
[408644591,1774036315795,-1593.75,0.00043392,120]
[408644592,1774036315804,-151.5,0.00043435,2]
[408644593,1774036315813,-5136.7728,0.000435,120]
[408644594,1774036315822,-174.90654626,0.000435,120]
[408644595,1774036315832,-6505.58713421,0.000435,30]
[408644596,1774036315842,-154.23085378,0.00043549,85]
[408644597,1774036315852,-156.79068997,0.00043558,2]
[408644598,1774036315861,-571.15,0.00043561,2]
[408644599,1774036315870,-985.0,0.00043589,120]
[408644600,1774036315880,-151.5,0.00043619,2]
[408644601,1774036315889,-228653.0,0.0004365,60]
[408644602,1774036315898,-500.0,0.00043695,60]
[408644603,1774036315907,-500.0,0.00043695,60]
[408644604,1774036315916,-501.2901347,0.00043695,30]
[408644605,1774036315927,-595.10299453,0.000437,120]
[408644606,1774036315937,-600.0,0.0004371,120]
[408644607,1774036315946,-600.0,0.0004371,120]
[408644608,1774036315957,-531.0,0.0004371,120]
[408644609,1774036315966,-151.5,0.00043741,2]
[408644610,1774036315976,-166.7290329,0.00043782,2]
[408644611,1774036315988,-510.05697477,0.000438,30]
[408644612,1774036315999,-794.93,0.000438,120]
[408644613,1774036316011,-246.54310378,0.00043808,120]
[408644614,1774036316023,-151.5,0.00043818,2]
[408644615,1774036316033,-156.79068997,0.00043832,2]
[408644616,1774036316044,-150.0,0.00043834,2]
[408644617,1774036316054,-666.38154897,0.00043835,120]
[408644618,1774036316063,-529.57182068,0.00043835,120]
[408644619,1774036316072,-655.93567864,0.00043835,120]
[408644620,1774036316083,-650.0,0.00043836,10]
[408644621,1774036316094,-50000.0,0.00043836,70]
[408644622,1774036316103,-1000.0,0.00043836,30]
[408644623,1774036316112,-294.0,0.00043836,30]
[408644624,1774036316122,-3999.0,0.00043836,120]
[408644625,1774036316131,-1000.0,0.00043836,120]
[408644626,1774036316141,-1000.0,0.00043836,120]
[408644627,1774036316151,-1000.0,0.00043836,120]
[408644628,1774036316159,-1000.0,0.00043836,120]
[408644629,1774036316168,-1000.0,0.00043836,120]
[408644630,1774036316178,-1000.0,0.00043836,120]
[408644631,1774036316187,-1000.0,0.00043836,120]
[408644632,1774036316197,-1000.0,0.00043836,120]
[408644633,1774036316206,-1000.0,0.00043836,120]
[408644634,1774036316215,-1000.0,0.00043836,120]
[408644635,1774036316224,-1000.0,0.00043836,120]
[408644636,1774036316233,-1000.0,0.00043836,120]
[408644637,1774036316241,-1000.0,0.00043836,120]
[408644638,1774036316250,-1000.0,0.00043836,120]
[408644639,1774036316259,-1000.0,0.00043836,120]
[408644640,1774036316268,-1000.0,0.00043836,120]
[408644641,1774036316277,-1000.0,0.00043836,120]
[408644642,1774036316286,-1000.0,0.00043836,120]
[408644643,1774036316295,-1000.0,0.00043836,120]
[408644644,1774036316304,-1000.0,0.00043836,120]
[408644645,1774036316314,-1000.0,0.00043836,120]
[408644646,1774036316323,-1000.0,0.00043836,120]
[408644647,1774036316332,-1000.0,0.00043836,120]
[408644648,1774036316341,-1000.0,0.00043836,120]
[408644649,1774036316350,-1000.0,0.00043836,120]
[408644650,1774036316360,-1000.0,0.00043836,120]
[408644651,1774036316369,-1000.0,0.00043836,120]
[408644652,1774036316379,-1000.0,0.00043836,120]
[408644653,1774036316388,-1000.0,0.00043836,120]
[408644654,1774036316398,-1000.0,0.00043836,120]
[408644655,1774036316407,-1000.0,0.00043836,120]
[408644656,1774036316416,-1000.0,0.00043836,120]
[408644657,1774036316425,-1000.0,0.00043836,120]
[408644658,1774036316435,-1000.0,0.00043836,120]
[408644659,1774036316445,-1000.0,0.00043836,120]
[408644660,1774036316454,-1000.0,0.00043836,120]
[408644661,1774036316463,-1000.0,0.00043836,120]
[408644662,1774036316472,-1000.0,0.00043836,120]
[408644663,1774036316482,-1000.0,0.00043836,120]
[408644664,1774036316491,-1000.0,0.00043836,120]
[408644665,1774036316501,-1000.0,0.00043836,120]
[408644666,1774036316511,-1000.0,0.00043836,120]
[408644667,1774036316521,-1000.0,0.00043836,120]
[408644668,1774036316534,-1000.0,0.00043836,120]
[408644669,1774036316544,-1000.0,0.00043836,120]
[408644670,1774036316554,-1000.0,0.00043836,120]
[408644671,1774036316564,-1000.0,0.00043836,120]
[408644672,1774036316573,-1680.0,0.00043836,120]
[408644673,1774036316583,-1000.0,0.00043836,18]
[408644674,1774036316592,-500.0,0.00043836,10]
[408644675,1774036316602,-3000.0,0.00043836,10]
[408644676,1774036316611,-150.0,0.00043836,2]
[408644677,1774036316621,-150.0,0.00043836,2]
[408644678,1774036316630,-150.0,0.00043836,2]
[408644679,1774036316640,-195.06546453,0.00043836,2]
[408644680,1774036316650,-151.5,0.00043891,2]
[408644681,1774036316660,-14865.9151099,0.000439,7]
[408644682,1774036316669,-5714.79355236,0.00043912,90]
[408644683,1774036316679,-10000.0,0.00043947,2]
[408644684,1774036316688,-486.51,0.0004398,30]
[408644685,1774036316697,-151.5,0.00043984,2]
[408644686,1774036316706,-2100.17128211,0.00043987,120]
[408644687,1774036316716,-269.4,0.00044,3]
[408644688,1774036316725,-155.58,0.00044,5]
[408644689,1774036316734,-7624.189021,0.00044,120]
[408644690,1774036316743,-704.3998548,0.00044,120]
[408644691,1774036316752,-7885.7883487,0.00044,120]
[408644692,1774036316762,-10000.0,0.00044,120]
[408644693,1774036316771,-100445.48053045,0.00044,14]
[408644694,1774036316781,-250.0,0.00044,120]
[408644695,1774036316790,-70934.65302509,0.00044,2]
[408644696,1774036316799,-62233.89221244,0.00044,120]
[408644697,1774036316809,-173.27919032,0.00044,120]
[408644698,1774036316818,-314.92098469,0.00044,120]
[408644699,1774036316828,-427.71774164,0.00044,120]
[408644700,1774036316837,-300.0,0.00044,10]
[408644701,1774036316847,-246.0,0.00044,120]
[408644702,1774036316857,-5000.0,0.00044,120]
[408644703,1774036316867,-178.04348314,0.00044,120]
[408644704,1774036316876,-509.88358833,0.00044,120]
[408644705,1774036316886,-476.41766024,0.00044,30]
[408644706,1774036316895,-40121.35840417,0.00044,120]
[408644707,1774036316905,-3024.0,0.00044,2]
[408644708,1774036316915,-4364.70186824,0.00044,30]
[408644709,1774036316924,-428.0,0.00044,2]
[408644710,1774036316933,-564.768822,0.00044,57]
[408644711,1774036316943,-71277.86479968,0.00044,14]
[408644712,1774036316953,-1634.21,0.00044055,2]
[408644713,1774036316962,-151.5,0.0004406,2]
[408644714,1774036316972,-503.0,0.00044085,28]
[408644715,1774036316983,-81610.47561246,0.000441,2]
[408644716,1774036316992,-156.79068997,0.00044106,2]
[408644717,1774036317002,-900.0,0.0004411,120]
[408644718,1774036317012,-875.0,0.0004411,120]
[408644719,1774036317021,-1000.0,0.0004411,30]
[408644720,1774036317032,-5000.0,0.00044187,30]
[408644721,1774036317043,-2010.0,0.00044187,30]
[408644722,1774036317053,-800.0,0.00044247,120]
[408644723,1774036317064,-150.0,0.00044281,120]
[408644724,1774036317074,-152.0,0.000443,120]
[408644725,1774036317085,-930.0,0.000443,60]
[408644726,1774036317095,-25092.3,0.000443,4]
[408644727,1774036317106,-283.16,0.000443,4]
[408644728,1774036317116,-150.3,0.000443,4]
[408644729,1774036317126,-156.79068997,0.0004438,2]
[408644730,1774036317136,-750.0,0.00044384,10]
[408644731,1774036317146,-119001.04016838,0.0004444,2]
[408644732,1774036317156,-2120.10811495,0.0004444,120]
[408644733,1774036317166,-192.77439335,0.0004444,90]
[408644734,1774036317179,-151.5,0.00044449,2]
[408644735,1774036317190,-3402.0,0.000445,120]
[408644736,1774036317200,-333.2465,0.00044521,120]
[408644737,1774036317210,-333.2465,0.00044521,120]
[408644738,1774036317220,-333.2465,0.00044521,120]
[408644739,1774036317231,-333.2465,0.00044521,120]
[408644740,1774036317241,-333.2465,0.00044521,120]
[408644741,1774036317251,-333.2465,0.00044521,120]
[408644742,1774036317261,-333.2465,0.00044521,120]
[408644743,1774036317271,-333.2465,0.00044521,120]
[408644744,1774036317285,-333.2465,0.00044521,120]
[408644745,1774036317296,-160.0,0.000446,120]
[408644746,1774036317309,-202.99,0.0004461,120]
[408644747,1774036317320,-202.99,0.0004461,120]
[408644748,1774036317336,-156.79068997,0.00044654,2]
[408644749,1774036317349,-202.99,0.0004471,120]
[408644750,1774036317360,-202.99,0.0004471,120]
[408644751,1774036317370,-208.41129113,0.00044782,2]
[408644752,1774036317381,-6507529.04892607,0.0004479,2]
[408644753,1774036317619,-519.535211,0.00021918,2]
[408644754,1774036317630,-43976.56625275,0.0004479,2]
[408644755,1774036317643,-4799.5887045,0.0004479,2]
[408644756,1774036317659,-289.14992639,0.0003452,2]
[408644757,1774036317671,-1715.00124585,0.0003452,2]
[408644758,1774036317689,-1704.30882776,0.0003452,2]
[408644759,1774036317700,-333.2465,0.00044521,120]
[408644760,1774036317710,-1508.74444224,0.0004479,2]
[408644761,1774036317723,-2722.93999999,0.0004479,2]
[408644762,1774036317965,-519.535218,0.00021918,2]
[408644763,1774036317975,-62690.16833864,0.00027397,10]
[408644764,1774036317997,-821.05374955,0.00027397,10]
[408644765,1774036318009,-752.48,0.00027397,10]
[408644770,1774037431957,-503.0,0.000133,2]
[408644771,1774037431967,-234.39453643,0.00013306,2]
[408644772,1774037431976,-2500.0,0.00013313,2]
[408644773,1774037431989,-2500.0,0.00013388,2]
[408644774,1774037431999,-1276.60546357,0.00013388,2]
[408644775,1774037432011,-498.60816711,0.00013388,2]
[408644776,1774037432121,-724.78636932,0.00013388,2]
[408644777,1774037432130,-2500.0,0.00013388,2]
[408644778,1774037432140,-200.54527315,0.00013401,2]
[408644779,1774037432150,-150.0,0.00013501,2]
[408644780,1774037432160,-16339.6355,0.00013502,2]
[408644781,1774037432171,-16187.739,0.00013956,2]
[408644783,1774037432181,-1000.0,0.00013956,2]
[408644785,1774037432190,-204.34291452,0.0001463,2]
[408644787,1774037432199,-300.0,0.0001463,2]
[408644789,1774037432209,-300.0,0.0001463,2]
[408644791,1774037432219,-288.89316862,0.0001463,2]
[408644793,1774037432229,-500.0,0.0001463,2]
[408644795,1774037432238,-500.0,0.0001463,2]
[408644797,1774037432247,-500.0,0.0001463,2]
[408644798,1774037432256,-500.0,0.0001463,2]
[408644800,1774037432266,-600.0,0.0001463,2]
[408644801,1774037432279,-2500.0,0.0001463,2]
[408644802,1774037432288,-300.0,0.0001463,2]
[408644803,1774037432298,-300.0,0.0001463,2]
[408644804,1774037432309,-300.0,0.0001463,2]
[408644805,1774037432319,-300.0,0.0001463,2]
[408644806,1774037432328,-300.0,0.0001463,2]
[408644807,1774037432338,-500.0,0.0001463,2]
[408644808,1774037432348,-600.0,0.0001463,2]
[408644809,1774037432358,-600.0,0.0001463,2]
[408644810,1774037432368,-600.0,0.0001463,2]
[408644811,1774037432377,-250.0,0.0001463,2]
[408644812,1774037432387,-600.0,0.0001463,2]
[408644813,1774037432396,-250.0,0.0001463,2]
[408644814,1774037432406,-4418.5496835,0.00014723,2]
[408644815,1774037432416,-250.0,0.00015,2]
[408644816,1774037432426,-150.0,0.000152,2]
[408644817,1774037432436,-5351.7,0.0001531,2]
[408644818,1774037432445,-150.99,0.0001531,2]
[408644819,1774037432455,-999.99,0.0001531,2]
[408644820,1774037432468,-9999.99,0.0001531,2]
[408644821,1774037432478,-1652.0,0.00015882,2]
[408644822,1774037432487,-211.0,0.00015909,2]
[408644823,1774037432497,-387.0,0.00015913,2]
[408644824,1774037432507,-200.0,0.00016356,2]
[408644825,1774037432516,-206.51,0.00016356,2]
[408644826,1774037432526,-200.0,0.00016356,2]
[408644827,1774037432817,-300.0,0.00017,2]
[408644828,1774037432827,-4144.2388,0.000175,2]
[408644829,1774037432837,-7208.29838955,0.00017533,2]
[408644830,1774037432846,-2500.0,0.00017535,2]
[408644831,1774037432856,-11510.43142619,0.000176,3]
[408644832,1774037432868,-3156.880922,0.000176,3]
[408644833,1774037432881,-699.49483532,0.000176,3]
[408644834,1774037432893,-472.0526679,0.000176,3]
[408644841,1774037438032,-1033.34012616,0.000176,3]
[408644842,1774037438047,-1188.74622491,0.000176,3]
[408644843,1774037438060,-1349.90711029,0.000176,3]
[408644844,1774037438083,-321.535,0.000176,3]
[408644845,1774037438193,-5267.61168723,0.000176,3]
[408644846,1774037438203,-150.0,0.00017607,2]
[408644847,1774037438213,-25000.0,0.00017608,3]
[408644848,1774037438224,-25000.0,0.00017617,3]
[408644849,1774037438235,-10368.42831267,0.00017626,3]
[408644854,1774037440308,-1842.0,0.00017626,3]
[408644855,1774037440321,-711.515,0.00017626,3]
[408644856,1774037440519,-6069.72247256,0.00017626,3]
[408644861,1774037443057,-3842.84368682,0.00017626,3]
[408644862,1774037443372,-2165.49052795,0.00017626,3]
[408644863,1774037443382,-500.0,0.00017634,2]
[408644864,1774037443392,-223.90381642,0.00017634,2]
[408644865,1774037443402,-25000.0,0.00017635,3]
[408644866,1774037443411,-25000.0,0.00017644,3]
[408644867,1774037443421,-25000.0,0.00017652,3]
[408644869,1774037443430,-25000.0,0.00017661,3]
[408644871,1774037443440,-222.95180387,0.00017662,2]
[408644872,1774037443450,-25000.0,0.0001767,3]
[408644873,1774037443459,-18990.89972342,0.0001767,3]
[408644874,1774037443469,-621.0,0.00017762,2]
[408644875,1774037443479,-3513.0,0.00017762,2]
[408644876,1774037443488,-1044.0,0.00017762,2]
[408644877,1774037443498,-1261.0,0.00017762,2]
[408644878,1774037443508,-1825.749,0.00017762,2]
[408644879,1774037443518,-3759.0,0.00017762,2]
[408644880,1774037443528,-931.0,0.000183,5]
[408644881,1774037443538,-477.0,0.000183,5]
[408644882,1774037443548,-206.51,0.000184,2]
[408644883,1774037443557,-503.0,0.00018431,6]
[408644884,1774037443567,-1588.19674375,0.00019061,2]
[408644885,1774037443577,-1000.0,0.000192,2]
[408644886,1774037443587,-3240.0,0.0001982,2]
[408644887,1774037443597,-160.0,0.00019837,2]
[408644888,1774037443606,-979.16666667,0.00019837,2]
[408644889,1774037443615,-200.0,0.0002,10]
[408644890,1774037443625,-1753.66,0.00020075,2]
[408644891,1774037443635,-300.0,0.000201,10]
[408644892,1774037443644,-206.51,0.00020445,2]
[408644893,1774037443654,-222.95180385,0.00020656,2]
[408644894,1774037443664,-620.0,0.00020762,2]
[408644895,1774037443674,-154.25568664,0.00021252,2]
[408644896,1774037443684,-177.0,0.00021268,2]
[408644897,1774037443694,-177.0,0.00021333,2]
[408644898,1774037443704,-177.0,0.00021368,2]
[408644899,1774037443713,-177.0,0.0002138,2]
[408644900,1774037443723,-177.0,0.00021577,2]
[408644901,1774037443733,-5000.0,0.00021918,2]
[408644902,1774037443743,-1000.0,0.00021918,2]
[408644903,1774037443753,-1000.0,0.00021918,2]
[408644904,1774037443763,-1000.0,0.00021918,2]
[408644905,1774037443772,-1000.0,0.00021918,2]
[408644907,1774037443781,-1000.0,0.00021918,2]
[408644908,1774037443791,-1000.0,0.00021918,2]
[408644909,1774037443801,-1000.0,0.00021918,2]
[408644910,1774037443811,-1000.0,0.00021918,2]
[408644911,1774037443820,-177.0,0.00021965,2]
[408644912,1774037443830,-177.0,0.00022047,2]
[408644913,1774037443840,-177.0,0.00022059,2]
[408644914,1774037443850,-177.0,0.00022068,2]
[408644915,1774037443860,-177.0,0.00022166,2]
[408644916,1774037443870,-177.0,0.00022212,2]
[408644917,1774037443882,-177.0,0.00022414,2]
[408644918,1774037443891,-206.51,0.00022489,2]
[408644919,1774037443901,-177.0,0.00022616,2]
[408644920,1774037443911,-177.0,0.00022622,2]
[408644921,1774037443922,-177.0,0.00022764,2]
[408644922,1774037443932,-177.0,0.00022857,2]
[408644923,1774037443941,-1000.0,0.000229,2]
[408644924,1774037443950,-979.16666667,0.00023,3]
[408644925,1774037443961,-154.25568664,0.00023023,2]
[408644926,1774037443971,-177.0,0.00023136,2]
[408644927,1774037443980,-177.0,0.00023258,2]
[408644928,1774037443990,-177.0,0.00023288,2]
[408644929,1774037443999,-177.0,0.000233,2]
[408644930,1774037444008,-177.0,0.00023302,2]
[408644931,1774037444018,-177.0,0.00023323,2]
[408644932,1774037444027,-177.0,0.00023324,2]
[408644933,1774037444036,-177.0,0.00023375,2]
[408644934,1774037444046,-177.0,0.00023386,2]
[408644935,1774037444055,-503.0,0.00023562,10]
[408644936,1774037444064,-222.95180385,0.0002365,2]
[408644937,1774037444074,-2000.0,0.00023923,2]
[408644938,1774037444083,-206.51,0.00024534,2]
[408644939,1774037444093,-150.0,0.00024658,2]
[408644940,1774037444102,-154.25568664,0.00024794,2]
[408644941,1774037444112,-2000.0,0.000249,2]
[408644942,1774037444121,-150.0,0.0002589,2]
[408644943,1774037444131,-154.25568664,0.00026565,2]
[408644944,1774037444140,-222.95180385,0.00026644,2]
[408644945,1774037444150,-2000.0,0.00026913,2]
[408644946,1774037444159,-150.0,0.00027185,2]
[408644947,1774037444168,-384.40739107,0.00027396,2]
[408644948,1774037444178,-528.96272986,0.00027396,2]
[408644949,1774037444187,-979.16666667,0.00027397,10]
[408644950,1774037444196,-1000.0,0.00027397,20]
[408644951,1774037444205,-211.36,0.00027881,2]
[408644952,1774037444214,-223.0,0.00027945,2]
[408644953,1774037444224,-979.16666667,0.000282,10]
[408644954,1774037444233,-154.25568664,0.00028336,2]
[408644955,1774037444243,-150.0,0.00028544,2]
[408644956,1774037444252,-2000.0,0.000286,2]
[408644957,1774037444263,-503.0,0.00028692,15]
[408644958,1774037444273,-222.95180385,0.00029638,2]
[408644959,1774037444282,-56865.54,0.00029894,10]
[408644960,1774037444292,-2000.0,0.00029903,2]
[408644961,1774037444302,-150.0,0.00029971,2]
[408644962,1774037444315,-200.0,0.0003,2]
[408644963,1774037444326,-300.0,0.000301,2]
[408644964,1774037444337,-557.0,0.00030107,5]
[408644965,1774037444347,-154.25568664,0.00030107,2]
[408644966,1774037444357,-500.0,0.00030136,2]
[408644967,1774037444367,-5238.43,0.00030136,2]
[408644968,1774037444376,-4901.99,0.00030136,14]
[408644969,1774037444386,-500.0,0.0003041,2]
[408644970,1774037444396,-5238.43,0.0003041,2]
[408644971,1774037444405,-4901.99,0.0003041,14]
[408644972,1774037444416,-11225.4183685,0.00030674,3]
[408644973,1774037444425,-1081.63,0.00030683,2]
[408644974,1774037444435,-500.0,0.00030684,2]
[408644975,1774037444444,-5238.43,0.00030684,2]
[408644976,1774037444453,-4901.99,0.00030684,14]
[408644977,1774037444463,-1742.18,0.00030684,2]
[408644978,1774037444472,-1742.18,0.00030684,2]
[408644979,1774037444482,-1742.18,0.00030684,2]
[408644980,1774037444491,-1742.18,0.00030684,2]
[408644981,1774037444500,-2035.83,0.00030684,2]
[408644982,1774037444510,-1081.63,0.00030957,2]
[408644983,1774037444520,-500.0,0.00030958,2]
[408644984,1774037444529,-5238.43,0.00030958,2]
[408644985,1774037444539,-4901.99,0.00030958,14]
[408644986,1774037444548,-1081.63,0.00031231,2]
[408644987,1774037444557,-500.0,0.00031232,2]
[408644988,1774037444567,-5238.43,0.00031232,2]
[408644989,1774037444575,-4901.99,0.00031232,14]
[408644990,1774037444585,-150.0,0.0003147,2]
[408644991,1774037444594,-11225.4183685,0.00031496,3]
[408644992,1774037444604,-1081.63,0.00031505,2]
[408644993,1774037444613,-500.0,0.00031506,2]
[408644994,1774037444622,-5238.43,0.00031506,2]
[408644995,1774037444632,-4901.99,0.00031506,14]
[408644996,1774037444642,-1081.63,0.00031779,2]
[408644997,1774037444652,-500.0,0.0003178,2]
[408644998,1774037444662,-5238.43,0.0003178,2]
[408644999,1774037444672,-4901.99,0.0003178,14]
[408645000,1774037444683,-1753.66,0.00031855,2]
[408645001,1774037444692,-154.25568665,0.00031878,2]
[408645002,1774037444701,-1081.63,0.00032053,2]
[408645003,1774037444711,-500.0,0.00032054,2]
[408645004,1774037444721,-5238.43,0.00032054,2]
[408645005,1774037444731,-4901.99,0.00032054,14]
[408645006,1774037444740,-2000.0,0.000323,2]
[408645007,1774037444750,-11225.4183685,0.00032318,3]
[408645008,1774037444759,-1081.63,0.00032327,2]
[408645009,1774037444769,-500.0,0.00032328,2]
[408645010,1774037444778,-5238.43,0.00032328,2]
[408645011,1774037444788,-4901.99,0.00032328,14]
[408645012,1774037444798,-1000.0,0.00032492,120]
[408645013,1774037444807,-162.0,0.00032499,30]
[408645014,1774037444817,-170.14966667,0.0003255,30]
[408645015,1774037444826,-170.14966667,0.00032554,30]
[408645016,1774037444836,-209.2895,0.00032569,2]
[408645017,1774037444846,-177.71566666,0.0003257,30]
[408645018,1774037444855,-238.13775,0.00032582,2]
[408645019,1774037444865,-695.0,0.00032582,5]
[408645020,1774037444875,-1081.63,0.00032601,2]
[408645021,1774037444886,-500.0,0.00032602,2]
[408645022,1774037444896,-5238.43,0.00032602,2]
[408645023,1774037444905,-4901.99,0.00032602,14]
[408645024,1774037444915,-222.95180385,0.00032633,2]
[408645025,1774037444926,-1081.63,0.00032875,2]
[408645026,1774037444936,-500.0,0.00032876,2]
[408645027,1774037444947,-5238.43,0.00032876,2]
[408645028,1774037444958,-4901.99,0.00032876,14]
[408645029,1774037444967,-11225.4183685,0.00032884,3]
[408645030,1774037444976,-2000.0,0.00032894,2]
[408645031,1774037444986,-150.0,0.00033043,2]
[408645032,1774037444996,-1081.63,0.00033149,2]
[408645033,1774037445005,-500.0,0.0003315,2]
[408645034,1774037445015,-5238.43,0.0003315,2]
[408645035,1774037445024,-4901.99,0.0003315,14]
[408645036,1774037445033,-1081.63,0.00033423,2]
[408645037,1774037445043,-500.0,0.00033424,2]
[408645038,1774037445053,-5238.43,0.00033424,2]
[408645039,1774037445063,-4901.99,0.00033424,14]
[408645040,1774037445073,-162.0,0.00033499,30]
[408645041,1774037445083,-1081.63,0.00033697,2]
[408645042,1774037445092,-463.0,0.00033698,2]
[408645043,1774037445101,-5238.43,0.00033698,2]
[408645044,1774037445111,-4901.99,0.00033698,14]
[408645045,1774037445121,-503.0,0.00033823,19]
[408645046,1774037445131,-11225.4183685,0.00033962,3]
[408645047,1774037445141,-1081.63,0.00033971,2]
[408645048,1774037445151,-5238.43,0.00033972,2]
[408645049,1774037445161,-4901.99,0.00033972,14]
[408645050,1774037445172,-1081.63,0.00034245,2]
[408645051,1774037445181,-5238.43,0.00034246,2]
[408645052,1774037445191,-4901.99,0.00034246,14]
[408645053,1774037445200,-166.0,0.00034499,30]
[408645054,1774037445209,-1081.63,0.00034519,2]
[408645055,1774037445219,-5238.43,0.0003452,2]
[408645056,1774037445229,-4901.99,0.0003452,14]
[408645057,1774037445240,-150.0,0.00034696,2]
[408645058,1774037445434,-68664.0,0.000347,2]
[408645059,1774037445444,-33676.2551056,0.0003479,3]
[408645060,1774037445454,-1081.63,0.00034793,2]
[408645061,1774037445463,-5238.43,0.00034794,2]
[408645062,1774037445474,-4901.99,0.00034794,14]